Cogmind - Beta 10.2 @@@ ROGUE MODE // 2022.02.02 @ 20:02:01 Player: User Result: Destroyed by G-67 Veteran with Plasma Rifle Performance ------------- Evolutions (7) 3500 Regions Visited (14) 2800 Robots Destroyed (179) 895 Value Destroyed (8427) 8427 Prototype IDs (13) 260 Alien Tech Used (0) 0 Bonus (4068) 4068 TOTAL SCORE: 19950 Bonus ------- Pacifist 200 High Alert Combat Kills 2645 Follower Combat Kills 1097 Entered Garrisons 200 Friendly Fire -74 Cogmind --------- Core Integrity 0/1300 Matter 4/300 Energy 700/700 System Corruption 10% Temperature Cool (12) Movement Rolling (90) Location -3/Testing Parts ------- > --- POWER (2) -------- (None) > --- PROPULSION (5) --- Centrium Wheel > --- UTILITY (10) ----- Improved Energy Well Improved Targeting Computer Advanced Target Analyzer Advanced Target Analyzer Improved Power Shielding > --- WEAPON (4) ------- (None) > --- INVENTORY (4) ---- Micro Fission Core Centrium Wheel Compact HERF Cannon Linear Accelerator Peak State ------------ > --- POWER ------------ Particle Reactor Light Quantum Reactor > --- PROPULSION ------- Medium Treads Medium Treads Armored Medium Treads Armored Heavy Treads > --- UTILITY ---------- Advanced Heat Sink Advanced Heat Sink Large Storage Unit Improved Energy Well Advanced Target Analyzer Improved Core Analyzer Improved Transmission Jammer Damper Plating > --- WEAPON ----------- Advanced Plasma Rifle Advanced Variable Charge Gun Long-range Proton Cannon Gamma Bomb Array > --- INVENTORY -------- Reinforced Fission Core Micro Fission Core Light Particle Reactor Flexi-carbon Leg Improved Kinecellerator Improved Focal Shield Thermal Shield Improved Force Field Plasma Rifle [Rating: 136] Favorites ----------- Power Light Nuclear Core Engine Light Ion Engine Power Core Light Nuclear Core Reactor Particle Reactor Propulsion Improved Medium Treads Treads Improved Medium Treads Leg Flexi-carbon Leg Wheel Centrium Wheel Hover Unit Improved Hover Unit Utility Large Storage Unit Device Advanced Heat Sink Storage Large Storage Unit Processor Improved Core Analyzer Protection Layered Medium Armor Plating Weapon Magnetic Acceleration Cannon Energy Gun Heavy Laser Energy Cannon Heavy Ion Cannon Ballistic Gun Heavy Machine Gun Ballistic Cannon Magnetic Acceleration Cannon Launcher Shock Bomb Launcher Build | -11 -10 -9 -8 -8 -8 -8 -6 -5 -5 -5 -5 -4 -3 -3 ------- Run | Scr Mat Mat Mat Sto Gar Rec Fac Fac Was Fac Ext Fac Res Tes Slots Evolved 14 | . . 2 2 . . . 4 2 . . . 2 2 . Power 1 | . . . 1 . . . . . . . . . . . Propulsion 3 | . . . . . . . 1 1 . . . . 1 . Utility 8 | . . 1 1 . . . 2 1 . . . 2 1 . Weapon 2 | . . 1 . . . . 1 . . . . . . . Parts Attached 161 | . . 11 4 5 26 . 21 13 5 1 16 2 57 . Power 24 | . . 1 2 . 6 . 4 1 . 1 2 . 7 . Engine 7 | . . 1 1 . 1 . 3 . . . 1 . . . Core 10 | . . . 1 . 5 . 1 1 . 1 . . 1 . Reactor 7 | . . . . . . . . . . . 1 . 6 . Propulsion 41 | . . 4 . 2 3 . 4 4 1 . 3 . 20 . Treads 19 | . . . . 2 3 . 4 4 1 . . . 5 . Leg 19 | . . 2 . . . . . . . . 3 . 14 . Wheel 1 | . . . . . . . . . . . . . 1 . Hover 2 | . . 2 . . . . . . . . . . . . Flight . | . . . . . . . . . . . . . . . Utility 48 | . . 2 1 2 6 . 7 7 2 . 5 1 15 . Device 26 | . . . 1 1 1 . 4 5 . . 3 . 11 . Storage 5 | . . 1 . . 2 . . 2 . . . . . . Processor 5 | . . . . . . . 1 . . . 1 . 3 . Hackware . | . . . . . . . . . . . . . . . Protection 12 | . . 1 . 1 3 . 2 . 2 . 1 1 1 . Artifact . | . . . . . . . . . . . . . . . Weapon 48 | . . 4 1 1 11 . 6 1 2 . 6 1 15 . Energy Gun 14 | . . 1 . . 1 . 2 . . . 3 1 6 . Energy Cannon 5 | . . . . 1 3 . . . . . . . 1 . Ballistic Gun 14 | . . 3 . . 2 . 2 . . . 1 . 6 . Ballistic Cannon 6 | . . . 1 . 2 . 1 . 1 . 1 . . . Launcher 9 | . . . . . 3 . 1 1 1 . 1 . 2 . Special Weapon . | . . . . . . . . . . . . . . . Impact Weapon . | . . . . . . . . . . . . . . . Slashing Weapon . | . . . . . . . . . . . . . . . Piercing Weapon . | . . . . . . . . . . . . . . . Special Melee Weapon . | . . . . . . . . . . . . . . . Unidentified Prototypes 5 | . . . . . . . . 2 . . . 1 2 . Parts Lost 87 | . . 1 . 1 15 . 13 2 . . 12 . 43 . Power 17 | . . . . . 5 . 4 1 . . 1 . 6 . Propulsion 18 | . . . . . 1 . 2 . . . 3 . 12 . Utility 22 | . . . . 1 2 . 4 1 . . 3 . 11 . Weapon 30 | . . 1 . . 7 . 3 . . . 5 . 14 . Highest Loss Streak 22 | . . 1 . 1 8 . 8 1 . . 9 . 22 . Average Slot Usage (%) 92 | . 85 83 90 98 95 100 91 97 100 100 95 89 84 28 Engine 5 | . 14 11 12 9 1 9 8 8 5 5 5 5 2 . Core 5 | . . . 5 9 12 9 3 1 5 5 3 . . . Reactor 1 | . . . . . . . . . . . 1 5 5 . Treads 13 | . . . . 18 18 18 14 21 23 23 18 5 5 . Leg 5 | . 28 20 18 . . . . . . . 2 15 14 . Device 14 | . . . 5 8 9 9 22 20 23 23 21 15 16 . Storage 10 | . 14 17 18 18 12 9 6 9 11 11 11 10 8 4 Processor 2 | . . . . . . . 1 3 . . 1 5 9 14 Protection 7 | . . 4 9 8 13 18 8 5 5 5 4 5 2 4 Energy Gun 3 | . 14 8 1 . . . 3 . . . 2 14 8 . Energy Cannon 1 | . . . . 9 5 . . . . . . . . . Ballistic Gun 3 | . 14 18 12 9 . . 6 5 . . 1 5 3 . Ballistic Cannon 7 | . . . 7 9 8 18 11 11 11 11 11 . . . Launcher 5 | . . . . . 10 9 2 5 10 11 4 . 2 . Naked Turns . | . . . . . . . . . . . . . . . Heaviest Build 132 | 11 11 37 43 48 63 63 69 68 69 77 96 119 132 6 Greatest Support 143 | 20 20 20 20 43 60 60 83 120 120 120 120 60 143 16 Greatest Overweight (x) 18 | . . 1 2 1 1 1 18 1 . . 2 1 2 . Average Overweight (x) . | . . . 1 . . 1 . . . . . 1 . . Largest Inventory Capacity 14 | 6 6 10 10 10 14 10 10 10 10 10 10 10 10 4 Average Capacity 9 | 6 6 8 10 10 9 10 10 10 10 10 10 10 9 4 Most Carried 10 | 6 6 10 10 10 10 10 10 10 10 10 10 10 10 4 Average Carried 8 | 6 6 6 9 7 9 9 7 9 9 9 9 8 7 4 Final Capacity 10 | 6 6 10 10 10 10 10 10 10 10 10 10 10 4 4 Final Carried 10 | 6 6 10 10 10 10 10 8 10 10 10 9 9 4 4 Class Distribution -------------------- 39% | Scavenger-Mutant 27% | Scavenger-Tank 12% | Scavenger-Gunner 7% | Mutant 6% | Scavenger-Bomber 5% | Tank Dominant Class ---------------- Mutant | -10/Materials Tank | -9/Materials Mutant | -8/Materials Tank | -8/Storage Scavenger-Mutant | -8/Garrison Scavenger-Mutant | -8/Recycling Scavenger-Tank | -6/Factory Scavenger-Tank | -5/Factory Scavenger-Mutant | -5/Waste Scavenger-Mutant | -5/Factory Scavenger-Tank | -5/Extension Scavenger-Tank | -4/Factory Scavenger-Gunner | -3/Research Mutant | -3/Testing Resources | -11 -10 -9 -8 -8 -8 -8 -6 -5 -5 -5 -5 -4 -3 -3 ----------- Run | Scr Mat Mat Mat Sto Gar Rec Fac Fac Was Fac Ext Fac Res Tes Matter Collected 5496 | 200 . 207 215 146 887 10 613 476 250 16 1175 28 1273 . Remotely . | . . . . . . . . . . . . . . . Salvage Created 10694 | . . 402 230 420 2533 10 785 495 205 . 1255 163 4196 . Parts 440 | . . 25 21 15 87 1 22 23 . . 39 3 204 . Haulers Intercepted . | . . . . . . . . . . . . . . . Recyclers Shooed 10 | . . . . . . . 1 2 . 1 . . 6 . Parts Field Recycled . | . . . . . . . . . . . . . . . Retrieved Matter . | . . . . . . . . . . . . . . . Parts Self-Destructed . | . . . . . . . . . . . . . . . Prevented . | . . . . . . . . . . . . . . . Kills | -11 -10 -9 -8 -8 -8 -8 -6 -5 -5 -5 -5 -4 -3 -3 ------- Run | Scr Mat Mat Mat Sto Gar Rec Fac Fac Was Fac Ext Fac Res Tes Combat Hostiles Destroyed 131 | . . 7 6 5 26 1 11 10 1 . 16 . 48 . Melee 1 | . . . . . . . . . . . . . 1 . Guns 46 | . . 7 4 1 5 . 4 . . . 2 . 23 . Cannons 42 | . . . 2 4 7 . 7 5 1 . 14 . 2 . AOE 27 | . . . . . 13 1 . 5 . . . . 8 . Classes Destroyed 17 | . . 4 2 1 2 1 1 . 1 . 3 . 2 . Worker 7 | . . . . . . . . . . . 1 1 5 . Builder 14 | . . . 1 . . . . 2 . . 5 . 6 . Recycler 19 | . . 3 . 2 . . 2 2 . . 4 1 5 . Operator 4 | . . . 1 . . . 1 . . . . . 2 . Drone 1 | . . . . . . 1 . . . . . . . . Watcher 4 | . . . . . . . . . . . 1 . 3 . Swarmer 16 | . . 4 2 . 3 . . 5 . . . . 2 . Saboteur 2 | . . . . . . . 1 . . . 1 . . . Grunt 56 | . . 1 2 2 13 . 6 . . . 10 . 22 . Brawler 5 | . . . . 1 . . 3 . . . 1 . . . Duelist 3 | . . . . . . . . . . . 1 . 2 . Protector 1 | . . . . . . . . . . . . . 1 . Sentry 19 | . . 2 2 2 6 . 1 2 . . 1 . 3 . Hunter 15 | . . . . . 3 . . 3 . . . . 9 . Programmer 9 | . . . . . . . . . . . . . 9 . Behemoth 3 | . . . . . 1 . . . . . 2 . . . Compactor 1 | . . . . . . . . . 1 . . . . . Best Kill Streak 13 | . . 3 5 5 6 1 5 5 1 . 7 2 13 . Combat Bots Only 10 | . . 3 5 3 6 1 4 5 1 . 6 . 10 . Max Kills in Single Turn 3 | . . 1 1 1 2 1 1 3 1 . 3 2 2 . Gunslinging . | . . . . . . . . . . . . . . . Exploded 3 | . . . . . 2 1 . 3 . . . . 2 . Melee 1 | . . . . . . . . . . . . . 1 . Uniques/NPCs Destroyed . | . . . . . . . . . . . . . . . Combat | -11 -10 -9 -8 -8 -8 -8 -6 -5 -5 -5 -5 -4 -3 -3 -------- Run | Scr Mat Mat Mat Sto Gar Rec Fac Fac Was Fac Ext Fac Res Tes Damage Taken 14833 | . . 354 438 141 1699 . 1393 496 173 . 2034 . 7792 313 Core 1966 | . . 56 48 13 384 . 20 17 8 . 105 . 1136 179 Absorbed by Shields 696 | . . . . . . . . . . . 546 . 150 . Core Remaining (%) 84 | 100 100 86 . . . 19 97 . . . 87 100 . . Volleys Fired 479 | . . 41 18 11 104 5 38 20 6 1 67 2 166 . Largest 4 | . . 3 3 3 3 1 4 4 4 1 4 4 4 . Hottest 257 | . . 91 91 127 158 53 191 179 195 53 219 254 257 . Shots Fired 1134 | . . 59 48 33 209 5 125 57 13 1 184 8 392 . Gun 601 | . . 59 31 11 34 . 76 18 . . 34 8 330 . Cannon 430 | . . . 17 22 125 3 49 36 4 1 149 . 24 . Launcher 103 | . . . . . 50 2 . 3 9 . 1 . 38 . Special . | . . . . . . . . . . . . . . . Kinetic 705 | . . 53 47 22 90 3 96 54 4 1 167 2 166 . Thermal 245 | . . 4 . 11 55 . 4 . . . 16 6 149 . Explosive 22 | . . . . . . . . 3 5 . . . 14 . Electromagnetic 162 | . . 2 1 . 64 2 25 . 4 . 1 . 63 . Robot Hit Streak 41 | . . 9 5 11 41 . 12 10 8 3 13 5 17 . Robot Miss Streak 10 | . . 5 2 2 3 . 4 9 3 . 10 1 6 . Penetration Max 2 | . . . . . . . . . . . 2 . 1 . Secondary Targets 9 | . . 1 . . . . . . . . . . 8 . Max Gunslinging Chain 1 | . . 1 . . . . . . . . . . 1 . Shots Hit Robots 765 | . . 28 25 20 158 . 93 41 12 1 122 6 259 . Core Hits 550 | . . 16 14 10 103 1 43 40 7 . 113 3 200 . Critical Hits 30 | . . . 1 . 3 . . . 1 . 15 . 10 . Critical Kills 10 | . . . 1 . . . . . . . 3 . 6 . Critical Parts Destroyed 15 | . . . . . 2 . . . . . 10 . 3 . Melee Attacks . | . . . . . . . . . . . . . . . Impact . | . . . . . . . . . . . . . . . Slashing . | . . . . . . . . . . . . . . . Piercing . | . . . . . . . . . . . . . . . Sneak Attacks . | . . . . . . . . . . . . . . . Combat Hostiles . | . . . . . . . . . . . . . . . Follow-up Attacks . | . . . . . . . . . . . . . . . Damage Inflicted 26366 | . . 358 445 444 5588 85 2135 1503 1092 32 3774 156 10754 . Guns 8392 | . . 358 261 93 584 . 1047 271 . . 307 156 5315 . Cannons 8471 | . . . 184 351 2238 . 1088 570 125 32 3252 . 631 . Explosions 9421 | . . . . . 2766 82 . 662 967 . 201 . 4743 . Melee . | . . . . . . . . . . . . . . . Ramming 82 | . . . . . . 3 . . . . 14 . 65 . Kinetic 10537 | . . 299 445 176 1322 . 1673 841 125 32 3383 44 2197 . Thermal 5410 | . . 23 . 268 1611 . 55 . . . 176 112 3165 . Explosive 3831 | . . . . . . . . 662 948 . . . 2221 . Electromagnetic 6506 | . . 36 . . 2655 82 407 . 19 . 201 . 3106 . Impact . | . . . . . . . . . . . . . . . Slashing . | . . . . . . . . . . . . . . . Piercing . | . . . . . . . . . . . . . . . Highest Corruption 10 | . . . . . 2 2 . . 1 1 1 . 10 10 Average Corruption 2 | . . . . . 1 2 . . 1 1 1 . 5 10 Corruption Purged . | . . . . . . . . . . . . . . . Effects 86 | . . . . . 15 7 . . 2 1 9 . 51 1 Message Errors 19 | . . . . . 6 2 . . 1 . 3 . 7 . Matter Fused 1 | . . . . . . . . . . . . . 1 . Heat Flow Errors 6 | . . . . . 1 2 . . . . . . 3 . Energy Discharges 6 | . . . . . 1 2 . . . . . . 3 . Parts Rejected 1 | . . . . . . . . . . . . . 1 . Data Loss (minor) 8 | . . . . . 1 1 . . 1 1 . . 4 . Data Loss (major) 3 | . . . . . . . . . . . . . 2 1 Alerts 2 | . . . . . . . . . . . . . 2 . Targeting Errors 35 | . . . . . 6 . . . . . 6 . 23 . Weapon Failures 5 | . . . . . . . . . . . . . 5 . Overload Shots . | . . . . . . . . . . . . . . . Overflow Damage 372 | . . . 2 . 54 12 . 54 . 2 2 . 246 . Projectiles 44 | . . . 2 . 6 . . 5 . 2 2 . 27 . Explosions 328 | . . . . . 48 12 . 49 . . . . 219 . Melee . | . . . . . . . . . . . . . . . Knockbacks 68 | . . . 1 1 4 . 17 7 . . 36 . 2 . Impact 1 | . . . . . . . . . . . . . 1 . Kinetic 63 | . . . 1 1 4 . 14 7 . . 36 . . . Secondary 4 | . . . . . . . 3 . . . . . 1 . Self-Inflicted Damage 247 | . . . . . 88 . . 44 81 . . . 34 . Shots 19 | . . . . . 7 . . 1 4 . . . 7 . Rammed 8 | . . . . . . 2 . . . . 2 . 4 . Targets Rammed 14 | . . . . . . 2 . . . . 2 . 10 . Kicked 5 | . . . . . . . . . . . . . 5 . Crushed 1 | . . . . . . . . . . . . . 1 . Highest Temperature 418 | . . 50 418 300 256 222 306 328 140 26 387 336 385 5 Average Temperature 111 | . . 14 173 130 64 97 77 118 72 16 120 171 128 5 Received Heat Transfer 2872 | . . 27 189 63 480 . 582 51 . . 665 . 698 117 Effects 11 | . . . 3 1 1 . 3 . . . 1 . 2 . Shutdowns 4 | . . . 2 . . . . . . . 1 . 1 . Energy Bleed 1 | . . . . . . . 1 . . . . . . . Interference 3 | . . . . . 1 . 2 . . . . . . . Matter Decay 1 | . . . . . . . . . . . . . 1 . Short Circuit 2 | . . . 1 1 . . . . . . . . . . Siege Activations . | . . . . . . . . . . . . . . . Robots Corrupted 23 | . . . . . 9 . . . . . . . 14 . Combat Hostiles 14 | . . . . . . . . . . . . . 14 . Parts Fried 42 | . . . . . 13 . . . . . . . 29 . Impact Corruptions . | . . . . . . . . . . . . . . . Robots Melted . | . . . . . . . . . . . . . . . Combat Hostiles . | . . . . . . . . . . . . . . . Parts Melted 16 | . . . . 1 2 . . 1 . . . 1 11 . Heat Transferred 7623 | . . 50 . 370 2102 . 125 . . . 296 211 4469 . Parts Sabotaged 3 | . . . . . . . 3 . . . . . . . Parts Stolen . | . . . . . . . . . . . . . . . Parts Stripped . | . . . . . . . . . . . . . . . Power Chain Reactions 12 | . . . . . 8 . . . . . . . 4 . Missiles Intercepted . | . . . . . . . . . . . . . . . Alert | -11 -10 -9 -8 -8 -8 -8 -6 -5 -5 -5 -5 -4 -3 -3 ------- Run | Scr Mat Mat Mat Sto Gar Rec Fac Fac Was Fac Ext Fac Res Tes Peak Influence 1392 | . 13 226 223 255 1382 621 1308 885 382 811 1392 640 1030 517 Initial 1145 | . . 5 31 93 165 621 1145 594 219 267 396 628 336 517 Average 705 | . 5 131 154 177 906 546 1192 743 350 350 1036 635 571 517 Maximum Alert Level 4 | . . 1 1 1 4 2 4 3 1 3 4 2 3 2 Low Security (%) 9 | 100 100 83 73 50 3 . . . . . . . . . Level 1 17 | . . 16 26 49 6 . . . 100 79 3 . 28 . Level 2 22 | . . . . . 16 100 . 37 . 11 1 100 34 100 Level 3 27 | . . . . . 32 . . 62 . 8 47 . 37 . Level 4 23 | . . . . . 40 . 100 . . . 47 . . . Level 5 . | . . . . . . . . . . . . . . . High Security . | . . . . . . . . . . . . . . . Max Security . | . . . . . . . . . . . . . . . Squads Dispatched 29 | . . 1 1 1 . . 4 4 . 1 4 . 13 . Investigation 8 | . . 1 . . . . 1 3 . . 2 . 1 . Extermination 5 | . . . . . . . . 1 . 1 . . 3 . Reinforcement 4 | . . . 1 . . . . . . . . . 3 . Assault 6 | . . . . . . . 3 . . . 2 . 1 . Garrison 6 | . . . . 1 . . . . . . . . 5 . Intercept . | . . . . . . . . . . . . . . . Construction Impeded 2 | . . . . . . . . . . . . . 2 . Haulers Reinforced . | . . . . . . . . . . . . . . . Stealth | -11 -10 -9 -8 -8 -8 -8 -6 -5 -5 -5 -5 -4 -3 -3 --------- Run | Scr Mat Mat Mat Sto Gar Rec Fac Fac Was Fac Ext Fac Res Tes Distress Signals 5 | . . . 1 . . . . . . . 3 . 1 . Communications Jammed 98 | . . . . . . . 4 . . . 18 . 76 . Distress Signals 94 | . . . . . . . 1 . . . 18 . 75 . Times Spotted 237 | . 1 10 9 5 29 22 21 14 3 6 44 . 70 3 Peak Tracking Total 9 | . 1 4 7 3 6 6 6 6 2 4 9 . 8 3 Tactical Retreats 26 | . . . . . 6 . 6 1 . . 10 . 3 . Traps | -11 -10 -9 -8 -8 -8 -8 -6 -5 -5 -5 -5 -4 -3 -3 ------- Run | Scr Mat Mat Mat Sto Gar Rec Fac Fac Was Fac Ext Fac Res Tes Traps Triggered 15 | . . 1 . 2 7 . 1 2 . . 1 . 1 . Indirectly 3 | . . . . . 3 . . . . . . . . . Trap Hack Attempts . | . . . . . . . . . . . . . . . Triggered . | . . . . . . . . . . . . . . . Disarmed . | . . . . . . . . . . . . . . . Reprogrammed 6 | . . 6 . . . . . . . . . . . . Reused . | . . . . . . . . . . . . . . . Traps Extracted . | . . . . . . . . . . . . . . . Installed . | . . . . . . . . . . . . . . . Triggered 2 | . . . . . 1 . . . . . . . 1 . Machines | -11 -10 -9 -8 -8 -8 -8 -6 -5 -5 -5 -5 -4 -3 -3 ---------- Run | Scr Mat Mat Mat Sto Gar Rec Fac Fac Was Fac Ext Fac Res Tes Machines Disabled 16 | . . . . . 5 1 1 6 . 2 . . 1 . Max in Single Turn 3 | . . . . . 1 1 1 3 . . . . 1 . Garrison Relay 4 | . . . . . 4 . . . . . . . . . Machines Sabotaged . | . . . . . . . . . . . . . . . Garrisons Compromised . | . . . . . . . . . . . . . . . Overloaded Fab Kills . | . . . . . . . . . . . . . . . Fab Network Shutdowns . | . . . . . . . . . . . . . . . Hacking | -11 -10 -9 -8 -8 -8 -8 -6 -5 -5 -5 -5 -4 -3 -3 --------- Run | Scr Mat Mat Mat Sto Gar Rec Fac Fac Was Fac Ext Fac Res Tes Machines Accessed 25 | . 2 5 . 2 . 2 3 4 . 2 3 1 1 . Terminals 15 | . 2 4 . 1 . 2 . 2 . 1 3 . . . Fabricators 2 | . . . . . . . 1 . . 1 . . . . Repair Stations 1 | . . . . . . . 1 . . . . . . . Recycling Units 2 | . . 1 . . . . . 1 . . . . . . Scanalyzers 2 | . . . . . . . 1 1 . . . . . . Garrison Access 3 | . . . . 1 . . . . . . . 1 1 . Total Hacks 73 | . 6 18 . 3 . 7 7 16 . 4 8 2 2 . Successful 38 | . 3 9 . 2 . 5 1 13 . 3 2 . . . Failed 35 | . 3 9 . 1 . 2 6 3 . 1 6 2 2 . Catastrophic 4 | . 2 . . . . . 1 . . . . . 1 . Database Lockouts . | . . . . . . . . . . . . . . . Manual 2 | . . 2 . . . . . . . . . . . . Terminals 46 | . 6 15 . 2 . 7 . 6 . 2 8 . . . Fabricators 4 | . . . . . . . 2 . . 2 . . . . Repair Stations 2 | . . . . . . . 2 . . . . . . . Recycling Units 4 | . . 3 . . . . . 1 . . . . . . Scanalyzers 12 | . . . . . . . 3 9 . . . . . . Garrison Access 5 | . . . . 1 . . . . . . . 2 2 . Terminal Hacks 23 | . 3 6 . 1 . 5 . 5 . 1 2 . . . Record 1 | . . . . . . . . 1 . . . . . . Prototype ID Bank 5 | . 1 2 . 1 . 1 . . . . . . . . Open Door 3 | . . . . . . . . . . 1 2 . . . Level Access Points 1 | . 1 . . . . . . . . . . . . . Branch Access Points 1 | . . . . . . . . 1 . . . . . . Emergency Access Points 1 | . . 1 . . . . . . . . . . . . Alert Level 3 | . . . . . . 2 . 1 . . . . . . Unreport Threat 2 | . . . . . . 1 . 1 . . . . . . Reprogram Traps 1 | . . 1 . . . . . . . . . . . . Zone Layout 5 | . 1 2 . . . 1 . 1 . . . . . . Fabricator Hacks 2 | . . . . . . . . . . 2 . . . . Load Schematic 1 | . . . . . . . . . . 1 . . . . Build 1 | . . . . . . . . . . 1 . . . . Repair Station Hacks . | . . . . . . . . . . . . . . . Recycling Unit Hacks 3 | . . 2 . . . . . 1 . . . . . . Retrieve Components 3 | . . 2 . . . . . 1 . . . . . . Scanalyzer 8 | . . . . . . . 1 7 . . . . . . Insert Component 4 | . . . . . . . 1 3 . . . . . . Analyze 4 | . . . . . . . . 4 . . . . . . Garrison Access Hacks 1 | . . . . 1 . . . . . . . . . . Unlock Access 1 | . . . . 1 . . . . . . . . . . Unauthorized Hacks 1 | . . 1 . . . . . . . . . . . . Terminals 1 | . . 1 . . . . . . . . . . . . Operators 1 | . . 1 . . . . . . . . . . . . Fabricators . | . . . . . . . . . . . . . . . Repair Stations . | . . . . . . . . . . . . . . . Recycling Units . | . . . . . . . . . . . . . . . Scanalyzers . | . . . . . . . . . . . . . . . Garrison Access . | . . . . . . . . . . . . . . . Data Cores Recovered 1 | . . . . . . . 1 . . . . . . . Used . | . . . . . . . . . . . . . . . Hacking Detections 24 | . 2 5 . 1 . 2 3 4 . 2 3 1 1 . Full Trace Events 10 | . . 2 . . . 1 1 3 . . 2 . 1 . Feedback Events . | . . . . . . . . . . . . . . . Feedback Blocked . | . . . . . . . . . . . . . . . Robot Schematics Acquired . | . . . . . . . . . . . . . . . Robots Built . | . . . . . . . . . . . . . . . Matter . | . . . . . . . . . . . . . . . Time . | . . . . . . . . . . . . . . . Total Robot Build Rating . | . . . . . . . . . . . . . . . Part Schematics Acquired 3 | . . . . . . . . 3 . . . . . . Parts Built . | . . . . . . . . . . . . . . . Matter 212 | . . . . . . . . . . 212 . . . . Time 106 | . . . . . . . . . . 106 . . . . Total Part Build Rating . | . . . . . . . . . . . . . . . Parts Repaired . | . . . . . . . . . . . . . . . Time . | . . . . . . . . . . . . . . . Parts Recycled . | . . . . . . . . . . . . . . . Recycled Matter . | . . . . . . . . . . . . . . . Retrieved Matter . | . . . . . . . . . . . . . . . Retrieved Components 11 | . . 10 . . . . . 1 . . . . . . Parts Scanalyzed 4 | . . . . . . . 1 3 . . . . . . Part Schematics Acquired 3 | . . . . . . . . 3 . . . . . . Parts Damaged . | . . . . . . . . . . . . . . . Bothacking | -11 -10 -9 -8 -8 -8 -8 -6 -5 -5 -5 -5 -4 -3 -3 ------------ Run | Scr Mat Mat Mat Sto Gar Rec Fac Fac Was Fac Ext Fac Res Tes Used RIF Installer . | . . . . . . . . . . . . . . . Robots Hacked . | . . . . . . . . . . . . . . . Non-combat . | . . . . . . . . . . . . . . . Combat . | . . . . . . . . . . . . . . . Robot Hacks Applied . | . . . . . . . . . . . . . . . Relay Couplers Released 15 | . . . . . 15 . . . . . . . . . Machine Destruction 15 | . . . . . 15 . . . . . . . . . Robots Rewired . | . . . . . . . . . . . . . . . Allies Hacked . | . . . . . . . . . . . . . . . Hacks Repelled . | . . . . . . . . . . . . . . . Allies | -11 -10 -9 -8 -8 -8 -8 -6 -5 -5 -5 -5 -4 -3 -3 -------- Run | Scr Mat Mat Mat Sto Gar Rec Fac Fac Was Fac Ext Fac Res Tes Total Allies 23 | . . . . . . . . 3 18 . 2 . . . Largest Group 18 | . . . . . . . . 3 18 13 8 . . . Highest-Rated Group 668 | . . . . . . . . 93 668 543 354 . . . Highest-Rated Ally 50 | . . . . . . . . 31 50 50 50 . . . Total Orders . | . . . . . . . . . . . . . . . Ally Attacks 201 | . . . . . . . . 41 68 36 56 . . . Total Damage 7996 | . . . . . . . . 819 2758 1628 2791 . . . Kills 44 | . . . . . . . . 2 10 13 19 . . . Allies Corrupted . | . . . . . . . . . . . . . . . Allies Melted . | . . . . . . . . . . . . . . . Intel | -11 -10 -9 -8 -8 -8 -8 -6 -5 -5 -5 -5 -4 -3 -3 ------- Run | Scr Mat Mat Mat Sto Gar Rec Fac Fac Was Fac Ext Fac Res Tes Robot Analysis Total . | . . . . . . . . . . . . . . . Derelict Logs Recovered . | . . . . . . . . . . . . . . . Drone Launches . | . . . . . . . . . . . . . . . Drone Recoveries . | . . . . . . . . . . . . . . . Exploration | -11 -10 -9 -8 -8 -8 -8 -6 -5 -5 -5 -5 -4 -3 -3 ------------- Run | Scr Mat Mat Mat Sto Gar Rec Fac Fac Was Fac Ext Fac Res Tes Turns Passed 8172 | 3 57 455 235 180 1798 373 734 899 296 395 945 152 1621 29 Spaces Moved 3904 | 3 48 252 97 73 867 192 329 477 161 182 416 78 697 32 Core 38 | . . . . . . . 1 . . . . . 37 . Treads 2662 | . . . . 73 867 192 328 477 161 182 328 . 54 . Legs 1145 | 3 48 230 97 . . . . . . . 88 78 601 . Wheels 37 | . . . . . . . . . . . . . 5 32 Hover 22 | . . 22 . . . . . . . . . . . . Flight . | . . . . . . . . . . . . . . . Fastest Speed 56 | 120 120 56 150 160 160 180 160 160 160 160 150 150 90 90 Average Speed 158 | 120 120 134 172 178 164 180 173 162 160 160 161 150 143 90 Slowest Speed 950 | 120 120 150 180 180 180 180 950 180 160 160 200 150 185 90 Overloaded Moves . | . . . . . . . . . . . . . . . Propulsion Burnouts . | . . . . . . . . . . . . . . . Robots Hopped . | . . . . . . . . . . . . . . . Cave-ins Triggered 2 | . . . . . . . . . . . 2 . . . Exploration Rate (%) 25 | 2 21 33 12 10 84 41 12 14 79 10 43 2 19 7 Regions Visited 14 Branch Regions 4 Pre-discovered Areas . | . . . . . . . . . . . . . . . Known Exits Taken 4 | . 1 . . 1 . . 1 . . 1 . . . . Unknown Exits Taken 7 | 1 . 1 1 . . 1 . . . . 1 1 1 . Scrap Searched . | . . . . . . . . . . . . . . . Spaces Dug 6 | . . . . . . . . . . . 6 . . . Terrain Destroyed 274 | . . . 1 1 32 1 2 53 47 . 22 . 115 . Melee . | . . . . . . . . . . . . . . . Projectile 34 | . . . 1 1 1 1 2 5 . . 22 . 1 . AOE 240 | . . . . . 31 . . 48 47 . . . 114 . Terrain Rammed . | . . . . . . . . . . . . . . . Walls Destroyed . | . . . . . . . . . . . . . . . Machines Disabled . | . . . . . . . . . . . . . . . Actions | -11 -10 -9 -8 -8 -8 -8 -6 -5 -5 -5 -5 -4 -3 -3 --------- Run | Scr Mat Mat Mat Sto Gar Rec Fac Fac Was Fac Ext Fac Res Tes Total 5031 | 2 47 319 135 102 1056 214 404 571 193 287 546 108 1015 32 Wait 215 | . . . . . 22 12 . 22 4 96 29 24 6 . Move 3888 | 2 47 251 96 72 864 191 328 477 160 181 414 77 696 32 Hop . | . . . . . . . . . . . . . . . Pick Up 175 | . . 12 9 6 24 2 17 23 8 4 14 2 54 . Fast Attach . | . . . . . . . . . . . . . . . Attach 107 | . . 4 2 3 17 . 19 8 . . 13 1 40 . Detach 1 | . . . . . . . . . . . . 1 . . Swap 54 | . . 7 2 2 9 . 2 5 5 1 3 1 17 . Drop 86 | . . 4 8 4 9 2 . 16 10 4 3 . 26 . Fire 479 | . . 41 18 11 104 5 38 20 6 1 67 2 166 . Melee . | . . . . . . . . . . . . . . . Ram . | . . . . . . . . . . . . . . . Kick 5 | . . . . . . . . . . . . . 5 . Crush 9 | . . . . . . 2 . . . . 2 . 5 . Escape Stasis 12 | . . . . 4 7 . . . . . 1 . . . Rewire . | . . . . . . . . . . . . . . . Trap . | . . . . . . . . . . . . . . . Miscellaneous . | . . . . . . . . . . . . . . . Route ------- -11/Scrapyard -10/Materials (discovered 4 exits: *Mat x3 / [*Min]) -9/Materials -8/Materials -8/Storage -8/Garrison (discovered 3 exits: *Rec x3) -8/Recycling -6/Factory -5/Factory (discovered 4 exits: Upp x2 / Ext x2) -5/Waste -5/Factory -5/Extension -4/Factory -3/Research -3/Testing History --------- Turn | Location | Event 1 | -11/Scrapyard | Discovered new exit (range 0) 4 | -11/Scrapyard | Entered Materials 38 | -10/Materials | Identified exit to Materials 38 | -10/Materials | Discovered new exit (range 14) 61 | -10/Materials | Entered another Materials area 61 | -9/Materials | Evolved 2 slots: Utility x1, Weapon x1 489 | -9/Materials | Discovered new exit (range 16) 516 | -9/Materials | Entered another Materials area 516 | -8/Materials | Evolved 2 slots: Power x1, Utility x1 672 | -8/Materials | Discovered new exit (range 15) 751 | -8/Materials | Entered Storage 806 | -8/Storage | Garrison activated, responded to threat 900 | -8/Storage | Identified exit to Garrison 931 | -8/Storage | Entered Garrison 990 | -8/Garrison | Triggered checkpoint 1025 | -8/Garrison | Garrison Relay disabled 1112 | -8/Garrison | Triggered checkpoint 1114 | -8/Garrison | Triggered checkpoint 1171 | -8/Garrison | Triggered checkpoint 1360 | -8/Garrison | Lost 3 parts (1p2w) 1366 | -8/Garrison | Triggered checkpoint 1372 | -8/Garrison | Discovered new exit (range 16) 1377 | -8/Garrison | Spotted B-75 Beast 1394 | -8/Garrison | Core integrity fell below 50% 1416 | -8/Garrison | Destroyed B-75 Beast 1443 | -8/Garrison | Lost 8 parts (1p1n2u4w) 1545 | -8/Garrison | Attempted to access garrison exit controls, blocked by remote lockdown 1800 | -8/Garrison | Discovered new exit (range 13) 1822 | -8/Garrison | Attempted to access garrison exit controls, blocked by remote lockdown 1870 | -8/Garrison | Triggered checkpoint 1933 | -8/Garrison | Garrison Relay disabled 2068 | -8/Garrison | Triggered checkpoint 2107 | -8/Garrison | Garrison Relay disabled 2115 | -8/Garrison | Core integrity fell below 20% 2155 | -8/Garrison | Discovered new exit (range 10) 2178 | -8/Garrison | Build established: Scavenger-Mutant 2535 | -8/Garrison | Garrison Relay disabled 2729 | -8/Garrison | Entered Recycling 2811 | -8/Recycling | Spotter reported a threat 2842 | -8/Recycling | Spotter reported a threat 2842 | -8/Recycling | Spotter reported a threat 2845 | -8/Recycling | Spotter reported a threat 2863 | -8/Recycling | Spotter reported a threat 2864 | -8/Recycling | Spotter reported a threat 2881 | -8/Recycling | Spotter reported a threat 2898 | -8/Recycling | Spotter reported a threat 2899 | -8/Recycling | Spotter reported a threat 2917 | -8/Recycling | Spotter reported a threat 2951 | -8/Recycling | Spotter reported a threat 2953 | -8/Recycling | Spotter reported a threat 2956 | -8/Recycling | Spotter reported a threat 2993 | -8/Recycling | Spotter reported a threat 2993 | -8/Recycling | Spotter reported a threat 3004 | -8/Recycling | Spotter reported a threat 3009 | -8/Recycling | Spotter reported a threat 3023 | -8/Recycling | Spotter reported a threat 3023 | -8/Recycling | Spotter reported a threat 3034 | -8/Recycling | Spotter reported a threat 3062 | -8/Recycling | Spotter reported a threat 3072 | -8/Recycling | Spotter reported a threat 3076 | -8/Recycling | Spotter reported a threat 3090 | -8/Recycling | Spotter reported a threat 3093 | -8/Recycling | Spotter reported a threat 3095 | -8/Recycling | Discovered new exit (range 4) 3102 | -8/Recycling | Entered Factory 3102 | -6/Factory | Evolved 4 slots: Propulsion x1, Utility x2, Weapon x1 3331 | -6/Factory | Lost 4 parts (1n2u1w) 3452 | -6/Factory | First assault squad dispatched 3624 | -6/Factory | Build established: Scavenger-Tank 3663 | -6/Factory | Lost 8 parts (3p1n2u2w) 3787 | -6/Factory | Discovered new exit (range 16) 3834 | -6/Factory | Identified exit to Factory 3836 | -6/Factory | Entered another Factory area 3836 | -5/Factory | Evolved 2 slots: Propulsion x1, Utility x1 4020 | -5/Factory | Build established: Scavenger-Bomber 4213 | -5/Factory | Allied Derelicts emerged from ambush trap array 4278 | -5/Factory | Spotted B-75 Beast 4302 | -5/Factory | Allies destroyed B-75 Beast 4376 | -5/Factory | Build established: Scavenger-Tank 4454 | -5/Factory | Found Prototype Launcher 4455 | -5/Factory | Identified Tesla Bomb Launcher 4708 | -5/Factory | Identified exit to Upper Caves 4708 | -5/Factory | Identified exit to Extension 4735 | -5/Factory | Sucked down chute 4735 | -5/Factory | Entered Waste 4747 | -5/Waste | Spotted C-40 Crusher 4751 | -5/Waste | Spotted C-40 Crusher 4757 | -5/Waste | Found Gamma Bomb Array 4764 | -5/Waste | Spotted C-40 Crusher 4783 | -5/Waste | Warlord forces began an assault 4786 | -5/Waste | Allies destroyed C-40 Crusher 4794 | -5/Waste | Allies destroyed C-40 Crusher 4798 | -5/Waste | Spotted C-40 Crusher 4800 | -5/Waste | Allies destroyed C-40 Crusher 4802 | -5/Waste | Spotted C-40 Crusher 4806 | -5/Waste | Allies destroyed C-40 Crusher 4824 | -5/Waste | Found Damper Plating 4847 | -5/Waste | Spotted C-40 Crusher 4857 | -5/Waste | Destroyed C-40 Crusher 4907 | -5/Waste | Discovered new exit (range 15) 5031 | -5/Waste | Entered Factory 5031 | -5/Factory | Accompanied by 13 allies 5045 | -5/Factory | Build established: Scavenger-Mutant 5414 | -5/Factory | Discovered exit to Extension (range 6) 5426 | -5/Factory | Entered Extension 5426 | -5/Extension | Accompanied by 8 allies 5790 | -5/Extension | Rescued a captive Derelict 5791 | -5/Extension | Rescued a captive Derelict 5899 | -5/Extension | Crushed by falling debris 5903 | -5/Extension | Crushed by falling debris 5926 | -5/Extension | Disrupted transfer network 5958 | -5/Extension | Spotted B-75 Beast 5980 | -5/Extension | Destroyed B-75 Beast 5996 | -5/Extension | Spotted B-75 Beast 6015 | -5/Extension | Destroyed B-75 Beast 6026 | -5/Extension | First assault squad dispatched 6177 | -5/Extension | Lost 9 parts (1p3n5w) 6290 | -5/Extension | Discovered new exit (range 3) 6371 | -5/Extension | Entered Factory 6371 | -4/Factory | Evolved 2 slots: Utility x2 6485 | -4/Factory | Discovered new exit (range 15) 6508 | -4/Factory | Build established: Scavenger-Tank 6523 | -4/Factory | Entered Research 6523 | -3/Research | Evolved 2 slots: Propulsion x1, Utility x1 6771 | -3/Research | Found Gamma Bomb Array 7027 | -3/Research | Build established: Scavenger-Gunner 7087 | -3/Research | Spotted B-86 Titan 7273 | -3/Research | First assault squad dispatched 7525 | -3/Research | Garrison activated, responded to threat 7577 | -3/Research | Destroyed 10 combat bots 7663 | -3/Research | System corruption reached 10% 7690 | -3/Research | Lost 15 parts (3p3n3u6w) 7812 | -3/Research | Garrison activated, responded to threat 8029 | -3/Research | Found Fusion Bomb Launcher 8036 | -3/Research | Core integrity fell below 50% 8075 | -3/Research | Lost 22 parts (3p7n7u5w) 8122 | -3/Research | Spotted B-86 Titan 8125 | -3/Research | Discovered new exit (range 6) 8133 | -3/Research | Lost 4 parts (2n1u1w) 8140 | -3/Research | Core integrity fell below 20% 8144 | -3/Research | Entered Testing 8173 | -3/Testing | Destroyed by G-67 Veteran with Plasma Rifle Last Messages --------------- 08103_ K-01 Serf collects debris. 08104_ The unstable cave ceiling collapses. 08114_ Penetrated by Slug. 08114_ Slug penetrates Wall. 08117_ Penetrated by Slug. 08117_ Slug penetrates Wall. 08121_ ,OLFR9WDSYUJE0VKYAD<3 8YHQ7MCW>/9MAW 08125_ Terminal disabled. 08125_ Penetrated by Slug. 08125_ Slug penetrates Wall. 08125_ EXIT=FOUND 08132_ Acquired Com. HERF Cannon. 08136_ Acquired Centrium Wheel. 08137_ 9 ZS,JCUXVDE Q2KKAH|HG<6T0P 08139_ Acquired Centrium Wheel. 08141_ Dropped Imp. Dynamic Insulation System. 08141_ Acquired Linear Accelerator. LOCATION=UNKNOWN GOAL=ESCAPE 08157_ System corrupted: Substantial component data lost. Map ----- +----------------------------------------------------+ | ?????????????????????????????????????????????????? | | ?????????????????????????????????????????????????? | | ?????????????????????????????????????????????????? | | ?????????????????????????????????????????????????? | | ?????????????????????????????????????????????????? | | ?????????????????????????????????????????????????? | | ?????????????????????????????????????????????????? | | ?????????????????????????????????????????????????? | | ?????????????????????????????????????????????????? | | ?????????????????????????????????????????????????? | | ?????????????????????????????????????????????????? | | ?????????????????????????????????????????????????? | | ??????????? ??????????????????????????????????? | | ??????????# #?????????????????????????????????? | | ??????????# #?????????????????????????????????? | | ??????????# #?????????????????????????????????? | | ??????????# #?????????????????????????????????? | | ??????????# #?????????????????????????????????? | | ??????????# #?????????????????????????????????? | | ??????????# #?????????????????????????????????? | | ??????????# +?????????????????????????????????? | | ??????????# #?????????????????????????????????? | | ??????????# #?????????????????????????????????? | | ???######## #############+#???????????????????? | | ???# #???????????????????? | | ???# @ #???????????????????? | | ???# +???????????????????? | | ???# g #???????????????????? | | ???# ####g#################???????????????????? | | ???# #? ??????????????????????????????????? | | ???# # "?????????????????????????????????? | | ???# # " "?????????????????????????????????? | | ???# # " "?????????????????????????????????? | | ???# + " ?????????????????????????????????? | | ???# # """"????????????????????????????????? | | ???# # """"????????????????????????????????? | | ???# # "? ???????????????????????????????? | | #### # "???"???????????????????????????????? | | # # "???????????????????????????????????? | | # # ????????????????????????????????????? | | # # ????????????????????????????????????? | | #### #####????????????????????????????????????? | | ???# #????????????????????????????????????????? | | ???# #????????????????????????????????????????? | | ???# #????????????????????????????????????????? | | ???######????????????????????????????????????????? | | ?????????????????????????????????????????????????? | | ?????????????????????????????????????????????????? | | ?????????????????????????????????????????????????? | | ?????????????????????????????????????????????????? | +----------------------------------------------------+ Best States ------------- Heat Dissipation 84 Energy Generation 43 Energy Capacity 1130 Matter Stores 300 Matter Capacity 300 Sight Range 16 Terrain Scan Density 10 Jamming Range 12 Armor Coverage 1200 Resistance: KI 25 Resistance: TH 20 Resistance: EM 90 Power Shielding 66 Propulsion Shielding 66 Utility Shielding 66 Weapon Cycling 20 Phase Shifting 10 Evasion (%) 53 Targeting Accuracy 6 Target Analysis 8 Core Analysis 8 Recoil Reduction 5 Kinecelleration 40 Item Schematics ----------------- Imp. Medium Treads | -5/Factory | Scanalyzed Rnf. Deuterium Engine | -5/Factory | Scanalyzed Imp. Core Analyzer | -5/Factory | Scanalyzed Robot Schematics ------------------ None Fabricated ------------ Nothing Alien Tech Used ----------------- None Achievements -------------- No Signal Challenges ------------ None Game ------ Seed ProcessingDataExpander Manual? 0 Play Time 01:43:22 Cumulative 44.2 hours Start 2022.02.02 @ 18:18:13 End 2022.02.02 @ 20:02:01 Sessions 1 Manual Loads 0 Difficulty Rogue Special Mode None Game No. 76 Rogue 76 Adventurer 0 Explorer 0 Win Type - Total 0 Types 0/0/0/0/0/0/0/0/0 Lore% 35 Gallery% 47 Achievement% 27 Wizard Run 0 Options --------- ASCII 0 Keyboard 0 Movement Mouse Keybinds 0 Fullscreen 2 Font 20/Terminus Map View 66x50 Tactical HUD 1 Map Filters NONE Filters NONE Steam 1 RUN: 31e8c6cd-a1ce-454b-a239-3a2035e60fba